fUSD/lending_fUSD_20260224
["ID","MTS","AMOUNT","RATE_DAILY","PERIOD"]
[406555432,1771939843305,-500.0,0.00013698,2]
[406555433,1771939843314,-507.40049193,0.00013698,2]
[406555434,1771939843323,-657.39,0.00013698,2]
[406555435,1771939843332,-657.39,0.00013698,2]
[406555436,1771939843341,-657.39,0.00013698,2]
[406555437,1771939843350,-657.39,0.00013698,2]
[406555438,1771939843359,-657.39,0.00013698,2]
[406555439,1771939843368,-657.39,0.00013698,2]
[406555440,1771939843377,-657.39,0.00013698,2]
[406555441,1771939843386,-657.39,0.00013698,2]
[406555442,1771939843395,-657.39,0.00013698,2]
[406555443,1771939843405,-657.39,0.00013698,2]
[406555444,1771939843414,-657.39,0.00013698,2]
[406555445,1771939843423,-657.39,0.00013698,2]
[406555446,1771939843431,-657.39,0.00013698,2]
[406555447,1771939843440,-657.39,0.00013698,2]
[406555448,1771939843449,-657.39,0.00013698,2]
[406555449,1771939843458,-1423.69,0.00013698,2]
[406555450,1771939843467,-1423.69,0.00013698,2]
[406555451,1771939843475,-1423.69,0.00013698,2]
[406555452,1771939843484,-1423.69,0.00013698,2]
[406555453,1771939843494,-1423.69,0.00013698,2]
[406555454,1771939843503,-1423.69,0.00013698,2]
[406555455,1771939843512,-1423.69,0.00013698,2]
[406555456,1771939843520,-1423.69,0.00013698,2]
[406555457,1771939843529,-1423.69,0.00013698,2]
[406555458,1771939843538,-1423.69,0.00013698,2]
[406555459,1771939843547,-1423.69,0.00013698,2]
[406555460,1771939843556,-1423.69,0.00013698,2]
[406555461,1771939843565,-1423.69,0.00013698,2]
[406555462,1771939843574,-1423.69,0.00013698,2]
[406555463,1771939843583,-1423.69,0.00013698,2]
[406555464,1771939843592,-523.24,0.00013698,2]
[406555465,1771939843602,-523.24,0.00013698,2]
[406555466,1771939843610,-523.24,0.00013698,2]
[406555467,1771939843619,-523.24,0.00013698,2]
[406555468,1771939843628,-523.24,0.00013698,2]
[406555469,1771939843637,-523.24,0.00013698,2]
[406555470,1771939843646,-523.24,0.00013698,2]
[406555471,1771939843655,-523.24,0.00013698,2]
[406555472,1771939843664,-523.24,0.00013698,2]
[406555474,1771939843673,-523.24,0.00013698,2]
[406555475,1771939843682,-523.24,0.00013698,2]
[406555476,1771939843691,-523.24,0.00013698,2]
[406555477,1771939843700,-523.24,0.00013698,2]
[406555478,1771939843709,-523.24,0.00013698,2]
[406555479,1771939843718,-523.24,0.00013698,2]
[406555480,1771939843727,-523.24,0.00013698,2]
[406555481,1771939843735,-500.0,0.00013698,2]
[406555482,1771939843744,-500.0,0.00013698,2]
[406555483,1771939843753,-500.0,0.00013698,2]
[406555484,1771939843762,-500.0,0.00013698,2]
[406555485,1771939843771,-500.0,0.00013698,2]
[406555486,1771939843780,-500.0,0.00013698,2]
[406555487,1771939843789,-500.0,0.00013698,2]
[406555488,1771939843798,-500.0,0.00013698,2]
[406555489,1771939843807,-500.0,0.00013698,2]
[406555490,1771939843816,-500.0,0.00013698,2]
[406555491,1771939843825,-500.0,0.00013698,2]
[406555492,1771939843834,-500.0,0.00013698,2]
[406555493,1771939843843,-500.0,0.00013698,2]
[406555494,1771939843852,-858.26,0.00013698,2]
[406555495,1771939843861,-500.0,0.00013698,2]
[406555496,1771939843870,-858.26,0.00013698,2]
[406555497,1771939843879,-222.44569411,0.00013698,2]
[406555498,1771939843889,-858.26,0.00013698,2]
[406555499,1771939843898,-858.26,0.00013698,2]
[406555500,1771939843907,-858.26,0.00013698,2]
[406555501,1771939843916,-858.26,0.00013698,2]
[406555502,1771939843925,-858.26,0.00013698,2]
[406555503,1771939843934,-858.26,0.00013698,2]
[406555504,1771939843943,-858.26,0.00013698,2]
[406555505,1771939843952,-858.26,0.00013698,2]
[406555506,1771939843961,-858.26,0.00013698,2]
[406555507,1771939843970,-858.26,0.00013698,2]
[406555508,1771939843979,-858.26,0.00013698,2]
[406555509,1771939843988,-858.26,0.00013698,2]
[406555510,1771939843998,-858.26,0.00013698,2]
[406555511,1771939844007,-858.26,0.00013698,2]
[406555512,1771939844016,-500.0,0.00013698,2]
[406555513,1771939844025,-500.0,0.00013698,2]
[406555514,1771939844034,-500.0,0.00013698,2]
[406555515,1771939844043,-500.0,0.00013698,2]
[406555516,1771939844052,-500.0,0.00013698,2]
[406555517,1771939844060,-500.0,0.00013698,2]
[406555518,1771939844069,-500.0,0.00013698,2]
[406555519,1771939844079,-500.0,0.00013698,2]
[406555520,1771939844088,-500.0,0.00013698,2]
[406555521,1771939844097,-500.0,0.00013698,2]
[406555522,1771939844271,-500.0,0.00013698,2]
[406555523,1771939844281,-500.0,0.00013698,2]
[406555524,1771939844290,-500.0,0.00013698,2]
[406555525,1771939844298,-500.0,0.00013698,2]
[406555526,1771939844308,-500.0,0.00013698,2]
[406555527,1771939844317,-500.0,0.00013698,2]
[406555528,1771939844326,-500.0,0.00013698,2]
[406555529,1771939844335,-500.0,0.00013698,2]
[406555530,1771939844345,-500.0,0.00013698,2]
[406555531,1771939844354,-500.0,0.00013698,2]
[406555532,1771939844363,-500.0,0.00013698,2]
[406555533,1771939844373,-500.0,0.00013698,2]
[406555534,1771939844382,-500.0,0.00013698,2]
[406555535,1771939844392,-500.0,0.00013698,2]
[406555536,1771939844401,-500.0,0.00013698,2]
[406555537,1771939844410,-177.32,0.00013699,2]
[406555538,1771939844419,-16296.14,0.00013699,2]
[406555539,1771939844428,-500.0,0.00013699,2]
[406555540,1771939844437,-500.0,0.00013699,2]
[406555541,1771939844447,-509.0327441,0.00013699,2]
[406555542,1771939844456,-500.0,0.00013699,2]
[406555543,1771939844465,-500.0,0.00013699,2]
[406555544,1771939844474,-164.16786887,0.00013699,2]
[406555545,1771939844483,-162.13031906,0.00013699,2]
[406555546,1771939844493,-503.99220136,0.00013699,2]
[406555547,1771939844502,-504.16390705,0.00013699,2]
[406555548,1771939844512,-511.18624479,0.00013699,2]
[406555549,1771939844521,-500.0,0.00013699,2]
[406555550,1771939844530,-500.0,0.00013699,2]
[406555551,1771939844540,-304.38005979,0.00013699,2]
[406555552,1771939844549,-500.0,0.00013699,2]
[406555553,1771939844558,-500.0,0.00013699,2]
[406555554,1771939844567,-168.61283304,0.00013699,2]
[406555555,1771939844577,-500.0,0.00013699,2]
[406555556,1771939844586,-500.0,0.00013699,2]
[406555557,1771939844596,-503.60394883,0.00013699,2]
[406555558,1771939844606,-209.6165406,0.00013699,2]
[406555559,1771939844617,-487.94127816,0.00013699,2]
[406555560,1771939844627,-500.0,0.00013699,2]
[406555561,1771939844636,-501.93759306,0.00013699,2]
[406555562,1771939844646,-500.0,0.00013699,2]
[406555563,1771939844655,-501.44667058,0.00013699,2]
[406555564,1771939844665,-500.0,0.00013699,2]
[406555565,1771939844674,-170.38160206,0.00013699,2]
[406555566,1771939844684,-599.206441,0.00013699,2]
[406555567,1771939844693,-186.88471708,0.00013699,2]
[406555568,1771939844703,-150.0,0.000137,2]
[406555569,1771939844714,-150.0,0.000137,2]
[406555570,1771939844724,-150.0,0.000137,2]
[406555571,1771939844734,-215.42973367,0.000137,2]
[406555572,1771939844743,-27835.45009658,0.00013888,2]
[406555573,1771939844753,-4609.0,0.00013926,2]
[406555574,1771939844763,-1252.0,0.00013938,2]
[406555575,1771939844772,-251.44,0.00014027,2]
[406555576,1771939844781,-5882.54936,0.00014141,7]
[406555577,1771939844791,-33501.99674603,0.00014161,2]
[406555578,1771939844801,-1276.82336401,0.00014168,2]
[406555579,1771939844810,-1500.0,0.00014168,2]
[406555580,1771939844820,-1500.0,0.00014168,2]
[406555581,1771939844829,-1500.0,0.00014168,2]
[406555582,1771939844839,-1500.0,0.00014168,2]
[406555583,1771939844848,-527.71923747,0.00014168,2]
[406555584,1771939844857,-501.53221813,0.00014247,2]
[406555585,1771939844867,-483.17728486,0.00014247,2]
[406555586,1771939844876,-1092.86766843,0.00014247,2]
[406555587,1771939844886,-436.95947364,0.00014247,2]
[406555588,1771939844896,-1000.0,0.00014247,2]
[406555589,1771939844905,-1000.0,0.00014247,2]
[406555590,1771939844914,-1000.0,0.00014247,2]
[406555591,1771939844923,-583.60061699,0.00014247,2]
[406555592,1771939844933,-1000.0,0.00014247,2]
[406555593,1771939844943,-1000.0,0.00014247,2]
[406555594,1771939844952,-1000.0,0.00014247,2]
[406555595,1771939844962,-1000.0,0.00014247,2]
[406555596,1771939844972,-243.69912151,0.00014247,2]
[406555597,1771939844981,-4697.42439603,0.000143,2]
[406555598,1771939844991,-6018.23,0.00014381,2]
[406555599,1771939845000,-10357.55636516,0.0001439,2]
[406555600,1771939845010,-482.62263511,0.00014508,2]
[406555601,1771939845021,-482.62263508,0.00014508,2]
[406555602,1771939845031,-251.44,0.00014588,2]
[406555603,1771939845041,-27835.45009658,0.00014633,2]
[406555604,1771939845050,-151.0,0.00014634,2]
[406555605,1771939845059,-151.0,0.00014634,2]
[406555606,1771939845068,-151.0,0.00014634,2]
[406555607,1771939845078,-151.0,0.00014634,2]
[406555608,1771939845087,-20000.0,0.0001466,2]
[406555609,1771939845096,-503.87713345,0.00014716,2]
[406555610,1771939845105,-2000.0,0.00014716,2]
[406555611,1771939845115,-2000.0,0.00014716,2]
[406555612,1771939845124,-2000.0,0.00014716,2]
[406555613,1771939845134,-500.0,0.00014793,4]
[406555614,1771939845143,-1500.0,0.00014795,2]
[406555615,1771939845153,-1390.05507377,0.00014795,2]
[406555616,1771939845162,-602.53164684,0.00014795,2]
[406555617,1771939845173,-1500.0,0.00014795,2]
[406555618,1771939845184,-1500.0,0.00014795,2]
[406555619,1771939845194,-693.71551848,0.00014795,2]
[406555620,1771939845203,-1500.0,0.00014795,2]
[406555621,1771939845214,-482.62263511,0.00014871,2]
[406555622,1771939845223,-176.18400318,0.000149,2]
[406555623,1771939845232,-1227.65,0.00014973,2]
[406555624,1771939845242,-250.0,0.00015,2]
[406555625,1771939845253,-2057.23131483,0.00015,2]
[406555626,1771939845262,-18027.12324089,0.00015,7]
[406555627,1771939845271,-8008.97204016,0.00015,2]
[406555628,1771939845281,-33501.99674603,0.00015108,2]
[406555629,1771939845290,-140439.56128328,0.0001512,2]
[406555630,1771939845300,-251.44,0.00015149,2]
[406555631,1771939845309,-482.62263511,0.00015234,2]
[406555632,1771939845318,-778.04,0.00015238,2]
[406555633,1771939845328,-2500.0,0.00015264,2]
[406555634,1771939845337,-374.73958587,0.00015264,2]
[406555635,1771939845347,-2500.0,0.00015264,2]
[406555636,1771939845356,-173.87087054,0.00015273,2]
[406555637,1771939845366,-160.0,0.00015273,2]
[406555638,1771939845375,-1517.64,0.000153,2]
[406555639,1771939845384,-6453.0,0.00015319,2]
[406555640,1771939845393,-2129.0,0.00015338,2]
[406555641,1771939845403,-932.65135931,0.00015342,2]
[406555642,1771939845413,-2000.0,0.00015342,2]
[406555643,1771939845422,-1255.82806005,0.00015342,2]
[406555644,1771939845432,-27835.45009658,0.00015377,2]
[406555645,1771939845441,-510.0565306,0.000154,2]
[406555646,1771939845450,-175.66,0.00015469,2]
[406555647,1771939845460,-778.04,0.00015512,2]
[406555648,1771939845470,-482.62263511,0.00015596,2]
[406555649,1771939845481,-2247.75609779,0.00015807,2]
[406555650,1771939845491,-3000.0,0.00015812,2]
[406555651,1771939845500,-877.20909449,0.00015812,2]
[406555652,1771939845509,-1200.21212036,0.0001589,2]
[406555653,1771939845519,-461.85,0.00015903,2]
[406555654,1771939845528,-482.62263511,0.00015959,2]
[406555655,1771939845538,-380.32235674,0.00016,2]
[406555656,1771939845547,-419.22118993,0.00016,2]
[406555657,1771939845556,-33501.99674603,0.00016056,2]
[406555658,1771939845565,-461.85,0.00016062,2]
[406555659,1771939845574,-2725.04997657,0.00016092,2]
[406555660,1771939845585,-380.32235674,0.000161,2]
[406555661,1771939845594,-9999.99,0.00016116,2]
[406555662,1771939845604,-27835.45009658,0.00016121,2]
[406555663,1771939845613,-27500.03877492,0.000162,5]
[406555664,1771939845622,-380.32235674,0.000162,2]
[406555665,1771939845631,-461.85,0.00016221,2]
[406555666,1771939845641,-454.1749961,0.00016236,2]
[406555667,1771939845650,-482.62263511,0.00016322,2]
[406555668,1771939845660,-200.0,0.0001634,2]
[406555669,1771939845669,-3500.0,0.0001636,2]
[406555670,1771939845679,-461.85,0.0001638,2]
[406555671,1771939845688,-454.1749961,0.00016397,2]
[406555672,1771939845698,-199.17461346,0.00016438,2]
[406555673,1771939845707,-657.39,0.00016438,2]
[406555674,1771939845716,-1423.69,0.00016438,2]
[406555675,1771939845726,-20000.0,0.00016438,2]
[406555676,1771939845735,-461.85,0.00016539,2]
[406555677,1771939845744,-454.1749961,0.00016558,2]
[406555678,1771939845754,-361.85708907,0.000166,2]
[406555679,1771939845763,-1227.65,0.00016636,2]
[406555680,1771939845773,-482.62263511,0.00016684,2]
[406555681,1771939845782,-461.89325126,0.00016698,2]
[406555682,1771939845792,-9035.0,0.00016851,2]
[406555683,1771939845802,-3620.0,0.00016871,2]
[406555684,1771939845811,-620.70979822,0.00016908,2]
[406555685,1771939845821,-200.0,0.00016983,2]
[406555686,1771939845831,-300.0,0.00017,2]
[406555687,1771939845841,-404976.30869257,0.00017,2]
[406555688,1771939845851,-33501.99674603,0.00017003,2]
[406555689,1771939845861,-482.62263511,0.00017047,2]
[406555690,1771939845870,-391.36,0.00017078,2]
[406555691,1771939845880,-2190.8,0.00017121,2]
[406555692,1771939845890,-482.62263511,0.0001741,2]
[406555695,1771939845900,-2039.3747218,0.000175,3]
[406555697,1771939845909,-151.0,0.00017529,3]
[406555699,1771939845919,-1025.38126135,0.00017808,2]
[406555701,1771939845930,-1025.38126135,0.00017808,2]
[406555702,1771939845939,-1025.38126135,0.00017808,2]
[406555703,1771939845949,-1025.38126135,0.00017808,2]
[406555704,1771939845958,-1025.38126135,0.00017808,2]
[406555705,1771939845968,-1025.38126135,0.00017808,2]
[406555706,1771939845977,-1025.38126135,0.00017808,2]
[406555707,1771939845987,-1025.38126135,0.00017808,2]
[406555708,1771939845996,-1025.38126135,0.00017808,2]
[406555709,1771939846005,-1025.38126135,0.00017808,2]
[406555710,1771939846014,-1025.38126135,0.00017808,2]
[406555711,1771939846024,-1025.38126135,0.00017808,2]
[406555712,1771939846034,-1025.38126135,0.00017808,2]
[406555713,1771939846043,-1025.38126135,0.00017808,2]
[406555714,1771939846052,-1025.38126135,0.00017808,2]
[406555715,1771939846061,-1025.38126135,0.00017808,2]
[406555716,1771939846070,-1025.38126135,0.00017808,2]
[406555717,1771939846079,-1025.38126135,0.00017808,2]
[406555718,1771939846089,-1418.85384249,0.00017808,2]
[406555719,1771939846098,-1418.85384249,0.00017808,2]
[406555720,1771939846108,-1418.85384249,0.00017808,2]
[406555721,1771939846117,-1418.85384249,0.00017808,2]
[406555722,1771939846127,-1418.85384249,0.00017808,2]
[406555723,1771939846136,-1418.85384249,0.00017808,2]
[406555724,1771939846146,-1418.85384249,0.00017808,2]
[406555725,1771939846155,-1418.85384249,0.00017808,2]
[406555726,1771939846165,-1418.85384249,0.00017808,2]
[406555727,1771939846176,-1418.85384249,0.00017808,2]
[406555728,1771939846186,-1418.85384249,0.00017808,2]
[406555729,1771939846196,-299.38045201,0.00017808,2]
[406555730,1771939846205,-800.0,0.00017808,2]
[406555731,1771939846217,-1005.12410844,0.0001786,2]
[406555732,1771939846226,-33501.99674603,0.00017951,2]
[406555733,1771939846235,-814.07789084,0.00017951,2]
[406555734,1771939846245,-300.0,0.00017999,2]
[406555735,1771939846256,-666.0,0.00017999,2]
[406555736,1771939846266,-2713514.85475181,0.00018,2]
[406555737,1771939846275,-1048664.66908765,0.00018,2]
[406555738,1771939846284,-1227.65,0.000183,2]
[406555739,1771939846294,-8449.0,0.00018536,2]
[406555740,1771939846303,-151.0,0.00018784,2]
[406555741,1771939846312,-156.587,0.00018784,2]
[406555742,1771939846321,-162.380719,0.00018784,2]
[406555743,1771939846330,-159.89501112,0.00018784,2]
[406555744,1771939846340,-13725.948506,0.00018855,7]
[406555745,1771939846349,-800.0,0.00018904,2]
[406555746,1771939846358,-350.0,0.00019,2]
[406555747,1771939846367,-3684.68319849,0.00019,2]
[406555748,1771939846376,-4697.42439603,0.00019177,2]
[406555749,1771939846385,-787.713897,0.00019178,2]
[406555750,1771939846395,-787.713897,0.00019178,2]
[406555751,1771939846404,-787.713897,0.00019178,2]
[406555752,1771939846413,-787.713897,0.00019178,2]
[406555753,1771939846422,-500.0,0.00019439,5]
[406555754,1771939846431,-2581.38710496,0.0001995,15]
[406555755,1771939846440,-1227.65,0.00019963,2]
[406555756,1771939846449,-10156.31,0.00019996,2]
[406555757,1771939846458,-557.58452337,0.0002,120]
[406555758,1771939846467,-627.23211955,0.0002,120]
[406555759,1771939846475,-1948.3550072,0.0002,120]
[406555760,1771939846484,-14345.74723251,0.0002,120]
[406555761,1771939846494,-912.0,0.00020092,2]
[406555763,1771939846503,-912.0,0.00020108,2]
[406555764,1771939846512,-4234.36,0.0002033,2]
[406555765,1771939846521,-912.0,0.00020453,2]
[406555766,1771939846573,-912.0,0.00020499,2]
[406555767,1771939846582,-4263.61,0.00020517,2]
[406555768,1771939846592,-912.0,0.00020519,2]
[406555769,1771939846601,-912.0,0.00020537,2]
[406555770,1771939846610,-912.0,0.0002066,2]
[406555771,1771939846618,-1107.0,0.00020674,2]
[406555772,1771939846627,-1107.0,0.00020848,2]
[406555773,1771939846636,-159.62910539,0.00020849,2]
[406555774,1771939846645,-391.36,0.00020868,2]
[406555775,1771939846654,-490.95499564,0.000209,30]
[406555776,1771939846663,-400.0,0.00021,2]
[406555778,1771939846672,-166.66,0.00021044,2]
[406555780,1771939846681,-1107.0,0.00021055,2]
[406555782,1771939846690,-1107.0,0.00021169,2]
[406555784,1771939846699,-1107.0,0.00021381,2]
[406555786,1771939846708,-151.0,0.00021537,3]
[406555788,1771939846717,-1107.0,0.0002164,2]
[406555789,1771939846726,-1107.0,0.00021698,2]
[406555790,1771939846734,-1107.0,0.00021732,2]
[406555791,1771939846744,-166.66,0.00021738,2]
[406555792,1771939846753,-900.0,0.00021755,2]
[406555793,1771939846762,-1107.0,0.00021827,2]
[406555794,1771939846771,-350.0,0.00021883,2]
[406555795,1771939846780,-1107.0,0.00021896,2]
[406555796,1771939846789,-1107.0,0.00021909,2]
[406555797,1771939846798,-5000.0,0.00021918,2]
[406555798,1771939846807,-151.0,0.00021918,2]
[406555799,1771939846816,-151.0,0.00021918,2]
[406555800,1771939846825,-2007.56539932,0.00022,2]
[406555801,1771939846834,-15438.5,0.00022,2]
[406555802,1771939846843,-611.24674775,0.00022,120]
[406555803,1771939846851,-350.0,0.00022021,2]
[406555804,1771939846860,-1107.0,0.00022036,2]
[406555805,1771939846870,-1107.0,0.00022118,2]
[406555806,1771939846880,-350.0,0.00022326,2]
[406555807,1771939846889,-350.0,0.00022366,2]
[406555808,1771939846898,-1107.0,0.00022387,2]
[406555809,1771939846907,-166.66,0.00022433,2]
[406555810,1771939846916,-350.0,0.00022437,2]
[406555811,1771939846925,-3772.47,0.00022466,2]
[406555812,1771939846935,-1852.42,0.00022468,2]
[406555813,1771939846944,-1107.0,0.00022579,2]
[406555814,1771939846953,-1107.0,0.00022662,2]
[406555815,1771939846961,-350.0,0.00022762,2]
[406555816,1771939846970,-1107.0,0.00022787,2]
[406555817,1771939846979,-1107.0,0.00022796,2]
[406555818,1771939846987,-160.0,0.00023,2]
[406555819,1771939846996,-450.0,0.00023,2]
[406555820,1771939847005,-200.0,0.00023032,7]
[406555821,1771939847013,-350.0,0.00023039,2]
[406555822,1771939847023,-900.0,0.00023125,2]
[406555823,1771939847032,-166.66,0.00023127,2]
[406555824,1771939847041,-350.0,0.00023303,2]
[406555825,1771939847050,-500.0,0.00023362,9]
[406555826,1771939847058,-166.66,0.00023822,2]
[406555827,1771939847067,-15438.5,0.000239,2]
[406555828,1771939847076,-4697.42439603,0.00024054,2]
[406555829,1771939847085,-454.1749961,0.00024113,2]
[406555830,1771939847095,-350.0,0.0002415,2]
[406555831,1771939847104,-350.0,0.00024474,2]
[406555832,1771939847113,-350.0,0.00024497,2]
[406555833,1771939847123,-166.66,0.00024517,2]
[406555834,1771939847132,-1000.0,0.00024658,2]
[406555835,1771939847141,-155.72,0.00024658,30]
[406555836,1771939847151,-150.0,0.00024658,2]
[406555837,1771939847160,-350.0,0.00024689,2]
[406555838,1771939847170,-500.0,0.00025,2]
[406555839,1771939847182,-1000.0,0.00025,14]
[406555840,1771939847191,-566.19,0.00025147,2]
[406555841,1771939847200,-591.67,0.00025147,2]
[406555842,1771939847209,-500.0,0.00025147,2]
[406555843,1771939847219,-917.0,0.00025147,2]
[406555844,1771939847228,-500.0,0.00025147,2]
[406555845,1771939847238,-523.24,0.00025147,2]
[406555846,1771939847246,-858.26,0.00025147,2]
[406555847,1771939847255,-500.0,0.00025147,2]
[406555848,1771939847263,-217.42,0.00025351,2]
[406555849,1771939847272,-850.04362382,0.00025536,21]
[406555850,1771939847281,-151.0,0.00025545,3]
[406555851,1771939847290,-150.0,0.0002589,2]
[406555852,1771939847299,-5795.0,0.00025968,2]
[406555853,1771939847308,-398.16311989,0.00026044,2]
[406555854,1771939847316,-217.42,0.00026045,2]
[406555855,1771939847325,-200.0,0.00026372,12]
[406555856,1771939847334,-500.0,0.00026392,14]
[406555857,1771939847343,-217.42,0.00026739,2]
[406555858,1771939847352,-15438.5,0.000268,2]
[406555859,1771939847361,-1992.03396773,0.00027,14]
[406555860,1771939847370,-550.0,0.00027,2]
[406555861,1771939847379,-150.0,0.00027185,2]
[406555862,1771939847388,-159.23733455,0.00027263,17]
[406555863,1771939847397,-160.29288222,0.00027397,2]
[406555864,1771939847406,-1000.0,0.00027397,20]
[406555865,1771939847415,-300.0,0.00027397,2]
[406555866,1771939847424,-657.39,0.00027432,2]
[406555867,1771939847432,-1423.69,0.00027432,120]
[406555868,1771939847441,-500.0,0.00028049,17]
[406555869,1771939847450,-150.0,0.00028544,2]
[406555870,1771939847459,-4697.42439603,0.00028931,2]
[406555871,1771939847468,-300.0,0.00028999,10]
[406555872,1771939847477,-2000.0,0.00029,2]
[406555873,1771939847486,-600.0,0.00029,2]
[406555874,1771939847494,-200000.0,0.00029,35]
[406555875,1771939847503,-2964.63942522,0.00029326,2]
[406555876,1771939848080,-500.0,0.00013698,2]
[406555877,1771939848090,-130.18418,0.00013698,2]
[406555878,1771939848123,-234.39641854,0.000108,2]
[406555879,1771939848132,-369.81582,0.00013698,2]
[406555880,1771939848142,-154.38618789,0.0001416,2]
[406555881,1771939848153,-345.61381211,0.0001416,2]
[406555882,1771939848162,-500.0,0.00015119,2]
[406555883,1771939848173,-212.87107749,0.00016199,2]
[406555884,1771939848186,-287.12892251,0.00016199,2]
[406555885,1771939848195,-425.41241493,0.00016999,2]
[406555886,1771939848205,-8303.69094205,0.00029326,2]
[406555887,1771939848215,-2590.74647568,0.00029356,2]
[406555888,1771939848224,-151.0,0.00029554,3]
[406555889,1771939848234,-500.0,0.00029706,22]
[406555890,1771939848244,-200.0,0.00029711,21]
[406555891,1771939848255,-150.0,0.00029971,2]
[406555892,1771939848265,-162.7376289,0.00029989,2]
[406555893,1771939848275,-300000.0,0.0003,25]
[406555894,1771939848285,-150.0,0.0003,2]
[406555895,1771939848295,-1000.0,0.0003,30]
[406555896,1771939848305,-158.02,0.00030411,120]
[406555897,1771939848315,-165.12,0.000305,30]
[406555898,1771939848324,-15438.5,0.000305,2]
[406555899,1771939848334,-150.0,0.00031,2]
[406555900,1771939848343,-159.62910539,0.00031274,2]
[406555901,1771939848354,-152.0,0.00031446,3]
[406555902,1771939848369,-150.0,0.0003147,2]
[406555903,1771939848378,-465.0,0.00031738,30]
[406555904,1771939848388,-184.7789246,0.00032,120]
[406555905,1771939848397,-164.01584354,0.00032,120]
[406555906,1771939848407,-167.15607918,0.00032,120]
[406555907,1771939848416,-1237.69,0.00032,120]
[406555908,1771939848426,-2000.0,0.000327,2]
[406555909,1771939848435,-500.0,0.00032736,34]
[406555910,1771939848444,-6064.671,0.00032803,2]
[406555911,1771939848454,-2455.0,0.00032803,2]
[406555912,1771939848463,-1040.0,0.00032803,2]
[406555913,1771939848473,-702.38,0.000329,2]
[406555914,1771939848482,-270.73,0.000329,14]
[406555915,1771939848492,-165.44,0.000329,14]
[406555916,1771939848501,-160.83,0.000329,14]
[406555917,1771939848512,-164.01584354,0.00033,120]
[406555918,1771939848522,-167.15607918,0.00033,120]
[406555919,1771939848532,-176.0,0.00033,14]
[406555920,1771939848541,-150.0,0.00033043,2]
[406555921,1771939848551,-168.86,0.0003305,35]
[406555922,1771939848562,-151.0,0.00033562,3]
[406555923,1771939848571,-1277.0,0.00033652,2]
[406555924,1771939848582,-150.597,0.00033652,2]
[406555925,1771939848592,-1032.444,0.00033652,2]
[406555926,1771939848603,-1218.319,0.00033652,2]
[406555927,1771939848613,-3772.47,0.00033699,2]
[406555928,1771939848623,-165.12,0.000337,30]
[406555929,1771939848633,-152.0,0.00033783,4]
[406555930,1771939848643,-15438.5,0.000338,2]
[406555931,1771939848653,-4697.42439603,0.00033808,2]
[406555932,1771939848664,-164.01584354,0.000339,120]
[406555933,1771939848675,-167.15607918,0.000339,120]
[406555934,1771939848684,-150.0,0.00034282,2]
[406555935,1771939848694,-150.0,0.00034283,2]
[406555936,1771939848704,-150.0,0.00034284,2]
[406555937,1771939848714,-150.0,0.00034285,2]
[406555938,1771939848724,-150.0,0.00034286,2]
[406555939,1771939848733,-150.0,0.00034287,2]
[406555940,1771939848743,-150.0,0.00034288,2]
[406555941,1771939848753,-150.0,0.00034289,2]
[406555942,1771939848762,-150.0,0.0003429,2]
[406555943,1771939848772,-150.0,0.00034291,2]
[406555944,1771939848782,-150.0,0.00034292,2]